bitfinex/quotes_SOLUSD_20240925
["timestamp","ask_amount","ask_price","bid_price","bid_amount"]
[1727225088553,6.5151,153.49,153.39,23.776884]
[1727225089653,6.5151,153.49,153.41,23.776884]
[1727225090532,16.2822,153.55,153.43,23.776884]
[1727225090751,6.5138,153.52,153.44,1.30283759]
[1727225091557,6.5138,153.52,153.44,31.30283759]
[1727225091753,6.515,153.5,153.44,30.0]
[1727225092562,6.5142,153.51,153.44,30.0]
[1727225095557,6.515,153.5,153.44,30.0]
[1727225095734,16.2822,153.55,153.44,30.0]
[1727225096347,16.2822,153.55,153.45,1.30297684]
[1727225096556,6.5147,153.5,153.45,1.30297684]
[1727225096950,6.5147,153.5,153.41,23.776884]
[1727225097133,6.5147,153.5,153.42,31.30297799]
[1727225097843,6.5134,153.53,153.43,23.776884]
[1727225099057,49.1539107,153.58,153.44,1.30266437]
[1727225099058,6.5142,153.51,153.44,1.30266437]
[1727225099362,6.5142,153.51,153.43,23.776884]
[1727225099566,6.5142,153.51,153.44,30.0]
[1727225100468,6.515,153.5,153.44,30.0]
[1727225101164,6.5151,153.49,153.44,30.0]
[1727225101341,6.5147,153.5,153.4,30.0]
[1727225102153,6.5147,153.5,153.41,23.776884]
[1727225102353,6.5147,153.5,153.42,30.0]
[1727225102553,6.5147,153.5,153.43,1.3029473]
[1727225102761,6.5134,153.53,153.44,23.776884]
[1727225103168,6.5142,153.51,153.45,1.30270575]
[1727225103560,16.2796,153.57,153.45,31.30270575]
[1727225103764,6.5138,153.52,153.46,1.30281615]
[1727225104286,16.2796,153.57,153.46,1.30281615]
[1727225104578,6.5134,153.53,153.45,30.0]
[1727225105157,6.5139,153.52,153.45,30.0]
[1727225107984,6.5142,153.51,153.45,30.0]
[1727225108272,6.5142,153.51,153.42,30.0]
[1727225109184,6.5142,153.51,153.43,23.776884]
[1727225109371,6.5142,153.51,153.44,30.0]
[1727225111374,6.5142,153.51,153.42,23.776884]
[1727225113790,6.5156,153.48,153.42,23.776884]
[1727225113962,23.776884,153.53,153.41,6.81628118]
[1727225114283,6.5175,153.44,153.42,30.0]
[1727225114985,6.5175,153.44,153.39,0.0514305]
[1727225115289,6.5175,153.44,153.39,30.0514305]
[1727225115606,16.2906,153.47,153.39,0.0514305]
[1727225116060,6.5177,153.43,153.39,0.0514305]
[1727225122188,6.5189,153.4,153.39,0.0514305]
[1727225122392,6.5176,153.43,153.39,0.0514305]
[1727225122991,23.776884,153.46,153.39,0.0514305]
[1727225123178,6.5181,153.42,153.39,0.0514305]
[1727225123566,6.1976,153.47,153.39,1.35506647]
[1727225123883,6.5169,153.45,153.4,22.8154]
[1727225124383,23.776884,153.46,153.39,0.0514305]
[1727225124583,6.5177,153.43,153.39,0.0514305]
[1727225124782,6.5175,153.44,153.39,6.5706305]
[1727225127992,6.5181,153.42,153.39,0.0514305]
[1727225128672,6.5186,153.41,153.39,0.0514305]
[1727225128979,23.776884,153.46,153.39,0.0514305]
[1727225129178,6.518,153.43,153.39,0.0514305]
[1727225129491,23.776884,153.46,153.39,0.0514305]
[1727225129791,6.5181,153.42,153.39,0.0514305]
[1727225130399,6.5185,153.41,153.39,0.0514305]
[1727225133975,6.518,153.42,153.39,0.0514305]
[1727225135692,23.776884,153.46,153.39,0.0514305]
[1727225135870,16.2931,153.44,153.39,0.0514305]
[1727225136077,6.5185,153.41,153.39,0.0514305]
[1727225136284,23.776884,153.43,153.39,0.0514305]
[1727225136486,6.5189,153.4,153.39,0.0514305]
[1727225148405,30.295784,153.4,153.39,0.0514305]
[1727225148613,6.5206,153.36,153.35,0.072495]
[1727225155591,30.297484,153.36,153.35,0.072495]
[1727225155800,30.297484,153.36,153.33,0.4343037]
[1727225155801,6.5214,153.34,153.33,0.4343037]
[1727225158204,6.5205,153.37,153.33,6.9561037]
[1727225158406,6.5198,153.38,153.33,6.9561037]
[1727225160114,6.5203,153.37,153.33,6.9561037]
[1727225162620,6.5198,153.38,153.33,6.9561037]
[1727225164802,6.5198,153.38,153.33,6.9961089]
[1727225165517,23.776884,153.41,153.33,0.4743089]
[1727225165705,6.5207,153.36,153.33,0.4743089]
[1727225165914,6.5202,153.37,153.33,0.4743089]
[1727225166113,6.5184,153.42,153.37,6.5201]
[1727225166306,6.5166,153.46,153.4,6.5188]
[1727225166514,15.5430144,153.49,153.4,16.2964]
[1727225166700,15.5430144,153.49,153.38,6.5193]
[1727225166909,17.18127753,153.49,153.36,16.3005]
[1727225167105,6.5198,153.38,153.33,16.7787089]
[1727225167402,6.5203,153.37,153.33,16.7787089]
[1727225167609,6.5206,153.43,153.33,0.4743089]
[1727225167610,6.5206,153.36,153.33,0.4743089]
[1727225172112,6.5206,153.36,153.33,0.4743089]
[1727225172725,6.5214,153.34,153.33,0.4743089]
[1727225172911,30.298284,153.34,153.33,0.4743089]
[1727225173112,6.5231,153.3,153.29,0.2460144]
[1727225173618,30.299984,153.3,153.29,0.2460144]
[1727225174521,6.5231,153.3,153.29,0.2460144]
[1727225176022,30.299984,153.3,153.29,0.2460144]
[1727225178433,6.5231,153.3,153.29,0.2460144]
[1727225181811,6.5227,153.31,153.29,0.2460144]
[1727225182011,6.5231,153.3,153.29,0.2460144]
[1727225183033,6.5244,153.27,153.26,0.072495]
[1727225183537,6.5244,153.27,153.24,0.3551089]
[1727225183538,6.5252,153.25,153.24,0.3551089]
[1727225184228,23.776884,153.27,153.24,0.3551089]
[1727225184735,6.5243,153.28,153.24,0.3551089]
[1727225187744,6.5236,153.29,153.24,0.3551089]
[1727225187917,6.5236,153.29,153.24,6.8807089]
[1727225188117,6.524,153.28,153.24,0.3551089]
[1727225188322,6.5244,153.27,153.24,0.3551089]
[1727225188937,23.776884,153.3,153.24,0.3551089]
[1727225189123,6.5249,153.26,153.24,0.3551089]
[1727225189543,6.5244,153.27,153.24,0.3551089]
[1727225190346,6.5252,153.25,153.24,0.3551089]
[1727225191118,6.5249,153.26,153.24,0.3551089]
[1727225191732,6.5252,153.25,153.24,0.3551089]
[1727225192935,6.5252,153.26,153.24,0.3551089]
[1727225193441,6.5252,153.25,153.24,0.3551089]
[1727225193841,20.0,153.29,153.24,0.3551089]
[1727225194140,6.5249,153.26,153.24,0.3551089]
[1727225194543,6.5252,153.25,153.24,0.3551089]
[1727225196048,30.302084,153.25,153.24,0.3551089]
[1727225201747,6.5252,153.25,153.24,0.3551089]
[1727225202625,6.5245,153.27,153.24,0.3551089]
[1727225202927,20.0,153.3,153.24,0.3551089]
[1727225203133,6.5245,153.27,153.24,0.3551089]
[1727225203553,20.0,153.31,153.24,0.3551089]
[1727225203947,6.524,153.28,153.24,0.3551089]
[1727225205048,6.5244,153.27,153.24,0.3551089]
[1727225205450,20.0,153.31,153.24,0.3551089]
[1727225205451,6.5252,153.25,153.24,0.3551089]
[1727225206447,6.5248,153.26,153.24,0.3551089]
[1727225206655,6.5244,153.27,153.24,0.3551089]
[1727225207764,23.776884,153.3,153.24,0.3551089]
[1727225207961,6.5248,153.26,153.24,0.3551089]
[1727225208262,6.5252,153.25,153.24,0.3551089]
[1727225216760,6.5249,153.26,153.24,0.3551089]
[1727225217557,23.776884,153.27,153.24,0.3551089]
[1727225217746,6.5248,153.26,153.24,0.3551089]
[1727225224248,23.776884,153.3,153.24,0.3551089]
[1727225224457,6.5252,153.25,153.24,0.3551089]
[1727225224766,23.776884,153.3,153.24,0.3551089]
[1727225224767,6.5249,153.26,153.24,0.3551089]
[1727225225656,6.5688,153.32,153.24,16.6693089]
[1727225225843,21.7515,153.33,153.28,6.5239]
[1727225226162,21.7515,153.33,153.28,22.8332]
[1727225226343,6.5223,153.32,153.28,16.3093]
[1727225226859,6.5227,153.31,153.27,6.524]
[1727225227367,6.5231,153.3,153.25,22.8377]
[1727225228668,23.776884,153.32,153.28,6.5236]
[1727225228869,30.299184,153.32,153.27,22.8342]
[1727225229078,6.5232,153.3,153.25,6.5252]
[1727225229773,23.776884,153.32,153.28,6.5239]
[1727225230153,6.5222,153.33,153.28,6.5239]
[1727225230370,24.44805247,153.36,153.27,16.311]
[1727225230661,6.5223,153.32,153.27,22.8353]
[1727225232656,15.2575,153.38,153.3,16.3077]
[1727225232895,6.521,153.36,153.31,6.5226]
[1727225233050,6.5201,153.37,153.32,6.5222]
[1727225233251,15.2575,153.38,153.3,16.3077]
[1727225233252,6.5206,153.36,153.3,16.3077]
[1727225233650,15.2575,153.38,153.3,16.3077]
[1727225233850,6.5211,153.35,153.3,22.8308]
[1727225234553,23.776884,153.37,153.3,16.3077]
[1727225234750,6.5204,153.37,153.32,6.5219]
[1727225235456,6.5204,153.37,153.3,16.3077]
[1727225235457,6.5206,153.36,153.31,6.5227]
[1727225235664,6.5211,153.35,153.3,22.8308]
[1727225235850,6.5215,153.34,153.3,16.3077]
[1727225236052,6.5219,153.33,153.28,6.5237]
[1727225236483,6.5223,153.32,153.27,22.8352]
[1727225236853,23.776884,153.37,153.28,1.3046592]
[1727225237059,6.5213,153.35,153.29,6.5234]
[1727225238474,6.5215,153.34,153.29,6.5234]
[1727225244570,6.522,153.33,153.27,16.3109]
[1727225244784,6.5223,153.32,153.28,6.5239]
[1727225245164,6.5219,153.33,153.29,6.5235]
[1727225245365,6.5215,153.34,153.29,6.5235]
[1727225246265,6.5211,153.35,153.3,6.523]
[1727225246473,23.776884,153.37,153.27,16.3109]
[1727225246474,6.5215,153.34,153.29,6.5235]
[1727225254788,6.5232,153.3,153.26,6.5247]
[1727225254988,23.776884,153.35,153.26,6.5247]
[1727225255284,30.298984,153.33,153.29,6.5235]
[1727225255975,6.5223,153.32,153.28,6.5238]
[1727225256568,6.5211,153.35,153.3,6.5231]
[1727225256881,15.2575,153.38,153.3,6.5231]
[1727225256882,23.776884,153.37,153.3,6.5231]
[1727225257286,6.5215,153.34,153.29,6.5235]
[1727225257591,6.5219,153.33,153.29,6.5235]
[1727225285103,6.5219,153.33,153.28,22.8332]
[1727225290324,6.5214,153.34,153.29,6.5235]
[1727225290524,23.776884,153.37,153.26,10.48862342]
[1727225290816,6.5211,153.35,153.27,1.30441779]
[1727225291521,6.5206,153.36,153.27,1.30441779]
[1727225292022,15.2575,153.38,153.28,10.48862342]
[1727225292201,6.5193,153.39,153.29,11.45023964]
[1727225292396,0.2460144,153.4,153.3,2.62493896]
[1727225292711,6.7650144,153.4,153.31,1.30401224]
[1727225292933,6.7650144,153.4,153.3,2.62493896]
[1727225293114,0.2460144,153.4,153.35,6.5206]
[1727225293408,6.5194,153.39,153.35,6.5206]
[1727225293612,6.5194,153.39,153.34,6.5214]
[1727225294001,0.2460144,153.4,153.33,16.3041]
[1727225294209,6.5203,153.37,153.33,16.3041]
[1727225296422,0.2460144,153.4,153.27,0.4972]
[1727225296623,6.5215,153.34,153.3,22.8306]
[1727225297529,6.5211,153.35,153.3,22.8306]
[1727225299121,23.776884,153.34,153.27,0.4972]
[1727225299322,6.5219,153.33,153.29,6.5234]
[1727225299515,6.5219,153.33,153.27,16.3107]
[1727225299709,6.5219,153.33,153.28,6.5237]
[1727225301630,6.5219,153.33,153.27,16.3107]
[1727225301631,63.6528984,153.4,153.25,10.1461]
[1727225301926,16.3056,153.33,153.24,23.1946089]
[1727225302108,16.3056,153.33,153.25,7.83011891]
[1727225302109,6.5236,153.29,153.25,7.83011891]
[1727225302425,6.5252,153.25,153.24,0.3551089]
[1727225302616,30.302084,153.25,153.24,0.3551089]
[1727225304015,43.776884,153.25,153.2,0.2460144]
[1727225304222,6.5267,153.22,153.2,0.2460144]
[1727225305011,6.5269,153.21,153.2,0.2460144]
[1727225305531,30.303784,153.21,153.2,0.2460144]
[1727225305831,23.776884,153.21,153.2,0.2460144]
[1727225309228,23.776884,153.2,153.15,0.4276039]
[1727225309443,16.3143,153.24,153.15,0.4276039]
[1727225309444,30.305484,153.18,153.15,0.4276039]
[1727225309644,23.776884,153.18,153.15,0.4276039]
[1727225310917,20.0,153.23,153.15,0.4276039]
[1727225311122,6.5261,153.23,153.18,6.528]
[1727225311432,26.5253,153.25,153.2,6.5273]
[1727225311812,20.0,153.25,153.19,16.3186]
[1727225312013,6.5257,153.24,153.19,22.8463]
[1727225312816,23.776884,153.23,153.19,22.8463]
[1727225314231,23.776884,153.23,153.18,6.5282]
[1727225314232,30.302984,153.23,153.18,6.5282]
[1727225314414,30.302984,153.23,153.16,16.3225]
[1727225314415,6.527,153.21,153.16,22.8512]
[1727225314621,6.527,153.21,153.17,6.5286]
[1727225314820,6.527,153.21,153.16,22.8516]
[1727225315217,23.776884,153.23,153.16,16.3225]
[1727225315218,6.5274,153.2,153.16,16.3225]
[1727225315419,23.776884,153.19,153.16,16.3225]
[1727225315829,6.5269,153.22,153.17,6.5286]
[1727225316236,6.5274,153.2,153.16,16.3225]
[1727225317238,30.304784,153.19,153.15,0.4276039]
[1727225317539,6.5287,153.17,153.15,0.4276039]
[1727225323232,6.3851,153.18,153.15,0.4276039]
[1727225323820,12.9135,153.18,153.15,0.4276039]
[1727225324034,1.30451554,153.17,153.15,0.4276039]
[1727225324332,30.305984,153.16,153.15,0.4276039]
[1727225326137,6.5305,153.13,153.1,0.2460144]
[1727225327248,6.5299,153.14,153.1,0.2460144]
[1727225327623,23.776884,153.13,153.1,0.2460144]
[1727225332938,30.307584,153.13,153.1,0.2460144]
[1727225334929,1.30451554,153.12,153.1,0.2460144]
[1727225335524,30.307584,153.13,153.1,0.2460144]
[1727225337347,23.776884,153.13,153.1,6.7774144]
[1727225337551,6.3851,153.18,153.1,0.2460144]
[1727225337726,6.5298,153.15,153.1,6.7776144]
[1727225337928,1.30451554,153.14,153.1,6.7776144]
[1727225338328,7.83441554,153.14,153.1,0.2460144]
[1727225338524,6.5299,153.14,153.1,6.7775144]
[1727225338746,1.30451554,153.13,153.1,6.7775144]
[1727225339129,23.776884,153.12,153.1,0.2460144]
[1727225339446,31.61219954,153.12,153.1,0.2460144]
[1727225341346,30.307684,153.12,153.1,0.2460144]
[1727225342138,23.776884,153.12,153.1,0.2460144]
[1727225342748,31.61259954,153.11,153.1,0.2460144]
[1727225343656,30.308084,153.11,153.1,0.2460144]
[1727225355542,6.5307,153.13,153.1,0.2460144]
[1727225355756,20.0,153.16,153.1,0.2460144]
[1727225355961,6.5306,153.13,153.1,0.2460144]
[1727225356164,1.30451554,153.12,153.1,0.2460144]
[1727225356460,20.0,153.16,153.1,0.2460144]
[1727225356658,6.5312,153.11,153.1,0.2460144]
[1727225356867,30.308084,153.11,153.1,0.2460144]
[1727225358356,1.30451554,153.16,153.1,0.2460144]
[1727225358564,17.96432734,153.17,153.12,6.5305]
[1727225358565,6.5287,153.17,153.12,6.5305]
[1727225359759,6.5287,153.17,153.13,6.53]
[1727225360156,6.3851,153.18,153.13,16.325]
[1727225360491,12.9133,153.18,153.14,6.5298]
[1727225360663,12.9133,153.18,153.13,22.8553]
[1727225366650,6.5287,153.17,153.13,22.8553]
[1727225368765,6.3851,153.18,153.13,22.8553]
[1727225368957,12.9133,153.18,153.14,6.5298]
[1727225373261,12.9133,153.18,153.13,16.325]
[1727225373470,12.9133,153.18,153.14,6.5299]
[1727225374975,6.3851,153.18,153.14,6.5299]
[1727225375169,15.5547,153.19,153.15,6.5293]
[1727225375751,6.5278,153.2,153.15,6.5293]
[1727225382774,6.5278,153.2,153.13,16.325]
[1727225382997,6.5278,153.2,153.16,6.5289]
[1727225387585,6.5278,153.2,153.13,16.325]
[1727225387586,6.4139,153.22,153.13,16.325]
[1727225387769,6.5287,153.17,153.13,22.8553]
[1727225387969,6.5295,153.15,153.1,17.88061804]
[1727225388278,6.5292,153.16,153.12,6.5307]
[1727225388484,6.5292,153.16,153.1,16.5746144]
[1727225388668,6.5292,153.16,153.11,6.5311]
[1727225388873,7.83401554,153.15,153.11,6.5311]
[1727225389495,6.5295,153.15,153.11,6.5311]
[1727225390180,6.5304,153.13,153.1,0.2460144]
[1727225390561,6.2383,153.14,153.1,0.2460144]
[1727225390562,6.5311,153.12,153.1,0.2460144]
[1727225392574,6.5312,153.11,153.1,0.2460144]
[1727225392974,30.308084,153.11,153.1,0.2460144]
[1727225397769,6.5312,153.11,153.1,0.2460144]
[1727225398197,6.5309,153.12,153.1,0.2460144]
[1727225399875,23.776884,153.13,153.1,0.2460144]
[1727225400075,6.5312,153.11,153.1,0.2460144]
[1727225402272,23.776884,153.13,153.1,0.2460144]
[1727225402273,30.307384,153.13,153.1,0.2460144]
[1727225405296,23.776884,153.13,153.1,0.2460144]
[1727225405509,6.5308,153.12,153.1,0.2460144]
[1727225406078,6.5312,153.11,153.1,0.2460144]
[1727225408196,1.30451554,153.11,153.06,0.3185094]
[1727225408399,6.5326,153.08,153.06,0.3185094]
[1727225408972,40.103484,153.13,153.06,0.3185094]
[1727225408973,6.5329,153.07,153.06,0.3185094]
[1727225409886,30.309784,153.07,153.06,0.3185094]
[1727225410098,6.5329,153.07,153.06,0.3185094]
[1727225410885,6.5325,153.08,153.06,0.3185094]
[1727225411397,30.309784,153.07,153.06,0.3185094]
[1727225412298,52.737384,153.07,153.06,0.3185094]
[1727225412501,52.737384,153.07,153.01,0.2460144]
[1727225412503,20.0,153.05,153.01,0.2460144]
[1727225412686,30.311884,153.02,153.01,0.2460144]
[1727225412898,23.776884,153.01,152.97,0.3185094]
[1727225413190,23.776884,153.02,152.97,0.3185094]
[1727225413191,6.536,153.0,152.97,0.3185094]
[1727225413389,23.776884,153.02,152.97,0.3185094]
[1727225413596,23.776884,153.01,152.97,0.3185094]
[1727225413803,30.312384,153.01,152.97,0.3185094]
[1727225414189,6.5359,153.0,152.97,0.3185094]
[1727225414481,23.776884,152.99,152.97,0.3185094]
[1727225415188,30.313284,152.99,152.97,0.3185094]
[1727225416210,25.08139954,152.98,152.97,0.3185094]
[1727225417988,23.776884,152.98,152.97,0.3185094]
[1727225419995,6.3158,153.0,152.97,0.3185094]
[1727225423423,22.6474,153.01,152.97,0.3185094]
[1727225423424,6.3158,153.07,152.97,0.3185094]
[1727225423616,6.5334,153.06,153.01,6.5354]
[1727225425286,23.776884,153.05,152.99,16.34]
[1727225425490,30.310984,153.05,153.0,6.5359]
[1727225425690,23.776884,153.06,152.97,0.3185094]
[1727225425908,23.776884,153.01,152.97,0.3185094]
[1727225426111,30.312484,153.01,152.97,0.3185094]
[1727225426310,6.536,153.0,152.97,0.3185094]
[1727225426491,31.61779954,152.99,152.97,0.3185094]
[1727225426690,31.61819954,152.98,152.97,0.3185094]
[1727225426906,31.61819954,152.98,152.92,0.2460144]
[1727225426907,6.5384,152.95,152.92,0.179428]
[1727225427109,23.776884,152.93,152.92,0.179428]
[1727225427310,6.538,152.95,152.92,0.179428]
[1727225427518,43.776884,152.96,152.92,0.179428]
[1727225427904,23.776884,152.97,152.92,0.179428]
[1727225428218,23.776884,152.99,152.95,6.538]
[1727225430012,1.30451554,152.98,152.95,6.538]
[1727225430405,30.313284,152.99,152.92,16.526728]
[1727225430596,30.313284,152.99,152.93,6.5388]
[1727225430798,23.776884,152.99,152.92,16.526728]
[1727225431019,23.776884,152.99,152.94,6.5383]
[1727225434615,6.5369,152.98,152.93,6.5389]
[1727225434822,25.08139954,152.97,152.93,6.5389]
[1727225435202,23.776884,152.97,152.93,6.5389]
[1727225435411,1.30451554,152.96,152.93,6.5389]
[1727225435724,1.30451554,152.96,152.92,23.066028]
[1727225436412,30.314084,152.97,152.92,23.066028]
[1727225436720,6.5376,152.96,152.92,23.066028]
[1727225437099,1.30451554,152.95,152.92,23.066028]
[1727225437295,23.776884,152.94,152.92,0.179428]
[1727225437501,23.776884,152.95,152.92,0.179428]
[1727225438143,23.776884,152.96,152.92,0.179428]
[1727225438427,6.5375,152.97,152.92,6.718728]
[1727225438733,6.5377,152.96,152.92,6.718728]
[1727225438917,6.5377,152.96,152.92,0.179428]
[1727225439417,6.5372,152.97,152.92,6.718528]
[1727225439719,23.776884,152.96,152.92,0.179428]
[1727225439906,23.776884,152.96,152.92,6.718628]
[1727225442304,23.776884,152.96,152.93,6.5388]
[1727225444033,20.0,152.99,152.95,6.538]
[1727225445622,20.0,152.99,152.92,0.179428]
[1727225445930,6.5377,152.96,152.92,0.179428]
[1727225446235,23.776884,152.96,152.92,6.718428]
[1727225449133,1.30451554,152.95,152.92,0.179428]
[1727225449821,7.84261554,152.95,152.92,0.179428]
[1727225452026,6.5389,152.93,152.92,0.179428]
[1727225452206,30.315784,152.93,152.92,0.179428]
[1727225454416,23.776884,152.93,152.92,0.179428]
[1727225454724,21.64706845,152.99,152.92,0.179428]
[1727225454725,20.0,152.99,152.92,0.179428]
[1727225454940,20.0,152.96,152.92,6.718628]
[1727225457234,23.776884,152.95,152.92,0.179428]
[1727225459216,30.315284,152.95,152.92,0.179428]
[1727225459544,43.776884,152.96,152.92,6.718728]
[1727225460522,43.776884,152.97,152.92,0.179428]
[1727225460728,23.776884,152.97,152.94,6.5384]
[1727225460930,23.776884,152.97,152.92,16.527228]
[1727225461237,23.776884,152.97,152.93,6.5388]
[1727225464226,20.0,152.96,152.92,0.179428]
[1727225464416,23.776884,152.95,152.92,0.179428]
[1727225465524,30.315784,152.93,152.92,0.179428]
[1727225467131,23.776884,152.93,152.92,0.179428]
[1727225467334,20.0,152.96,152.92,0.179428]
[1727225467636,23.776884,152.95,152.92,0.179428]
[1727225468031,23.776884,152.93,152.92,0.179428]
[1727225468338,30.315784,152.93,152.92,0.179428]
[1727225468839,31.62029954,152.93,152.92,0.179428]
[1727225469042,51.62029954,152.93,152.92,0.179428]
[1727225470738,50.315784,152.93,152.92,0.179428]
[1727225470939,23.776884,152.93,152.92,0.179428]
[1727225472429,30.315784,152.93,152.92,0.179428]
[1727225473123,30.315784,152.93,152.89,0.072495]
[1727225473124,23.776884,152.9,152.89,0.072495]
[1727225473323,30.317084,152.9,152.89,0.072495]
[1727225475833,50.317084,152.9,152.89,0.072495]
[1727225476038,30.317084,152.9,152.89,0.072495]
[1727225476344,43.776884,152.9,152.86,0.4564565]
[1727225476545,43.776884,152.9,152.79,0.419857]
[1727225476546,27.72902328,152.94,152.79,0.419857]
[1727225476547,23.776884,152.8,152.79,0.419857]
[1727225476761,43.776884,152.83,152.79,0.419857]
[1727225477051,23.776884,152.81,152.79,0.419857]
[1727225477252,1.30451554,152.8,152.79,0.419857]
[1727225477418,23.776884,152.8,152.79,0.419857]
[1727225477621,22.417,152.91,152.79,0.419857]
[1727225477845,20.0,152.9,152.85,6.5421]
[1727225478150,6.5392,152.93,152.88,6.5409]
[1727225478333,28.9554,152.95,152.88,6.5409]
[1727225478641,28.9554,152.95,152.87,16.3537]
[1727225478642,28.9554,152.95,152.89,6.5404]
[1727225479035,22.417,152.95,152.87,16.3537]
[1727225479230,6.5388,152.94,152.88,6.541]
[1727225479530,22.417,152.95,152.79,0.419857]
[1727225479531,6.5416,152.87,152.81,6.5439]
[1727225479737,6.5416,152.87,152.82,6.5435]
[1727225479935,16.3494,152.91,152.8,16.3612]
[1727225480147,6.5422,152.86,152.8,22.9056]
[1727225480445,23.776884,152.84,152.8,16.3612]
[1727225480646,23.776884,152.84,152.8,22.9056]
[1727225481448,20.0,152.88,152.83,6.5427]
[1727225482129,21.13778865,152.94,152.83,6.5427]
[1727225482541,20.0,152.88,152.84,6.5424]
[1727225483253,23.776884,152.87,152.84,6.5424]
[1727225483550,23.776884,152.87,152.83,16.3572]
[1727225483750,23.776884,152.87,152.83,22.9004]
[1727225484247,1.30451554,152.86,152.83,16.3572]
[1727225485044,1.30451554,152.86,152.82,6.5436]
[1727225486351,30.318484,152.87,152.82,6.5436]
[1727225486529,23.776884,152.87,152.83,6.5431]
[1727225486731,30.318684,152.87,152.8,16.361]
[1727225487860,23.776884,152.87,152.83,6.5431]
[1727225488354,1.30451554,152.86,152.82,6.5436]
[1727225488553,1.30451554,152.86,152.8,16.361]
[1727225488554,23.776884,152.84,152.8,16.361]
[1727225488729,23.776884,152.82,152.79,0.419857]
[1727225488931,23.776884,152.82,152.77,6.5457]
[1727225488932,1.30451554,152.81,152.77,6.5457]
[1727225489234,23.776884,152.82,152.77,6.5457]
[1727225489235,30.320784,152.82,152.78,0.4418126]
[1727225489434,30.320684,152.82,152.78,0.4418126]
[1727225489630,23.776884,152.8,152.78,0.4418126]
[1727225489828,38.7717,152.87,152.78,0.4418126]
[1727225490050,6.5432,152.84,152.79,6.5448]
[1727225490358,23.776884,152.83,152.79,6.5448]
[1727225490735,30.320484,152.83,152.78,23.3495126]
[1727225490933,23.776884,152.84,152.78,16.8042126]
[1727225491237,30.319684,152.84,152.79,6.5447]
[1727225491549,6.5424,152.85,152.8,6.5444]
[1727225491751,20.0,152.86,152.78,16.8042126]
[1727225492342,20.0,152.86,152.78,23.3492126]
[1727225492539,1.30451554,152.85,152.78,0.4418126]
[1727225492748,6.544,152.81,152.78,0.4418126]
[1727225493247,25.08139954,152.8,152.78,0.4418126]
[1727225493450,23.776884,152.8,152.78,0.4418126]
[1727225493755,31.62589954,152.8,152.78,0.4418126]
[1727225494051,30.321384,152.8,152.78,0.4418126]
[1727225494435,20.0,152.82,152.78,6.9870126]
[1727225495257,23.776884,152.81,152.78,0.4418126]
[1727225496753,6.5445,152.8,152.78,0.4418126]
[1727225496951,6.544,152.82,152.78,0.4418126]
[1727225497157,23.776884,152.81,152.78,0.4418126]
[1727225498266,30.321084,152.81,152.78,0.4418126]
[1727225498556,23.776884,152.82,152.78,0.4418126]
[1727225498744,30.320484,152.82,152.78,0.4418126]
[1727225500648,23.776884,152.82,152.78,0.4418126]
[1727225501038,30.320584,152.82,152.78,0.4418126]
[1727225502946,23.776884,152.8,152.78,0.4418126]
[1727225503145,1.30451554,152.79,152.78,0.4418126]
[1727225503661,6.5445,152.8,152.78,0.4418126]
[1727225504041,6.5436,152.83,152.79,6.5449]
[1727225504235,6.5433,152.83,152.79,6.5449]
[1727225504435,6.5433,152.83,152.77,17.0845267]
[1727225504667,6.5433,152.83,152.78,6.5452]
[1727225505767,23.776884,152.8,152.77,23.6301267]
[1727225505942,6.5441,152.81,152.77,23.6301267]
[1727225508865,6.5431,152.84,152.77,17.0845267]
[1727225509046,38.7717,152.87,152.77,17.0845267]
[1727225509047,6.4441,152.87,152.83,6.5428]
[1727225509371,15.234,152.91,152.84,6.5426]
[1727225509372,6.5407,152.89,152.84,6.5426]
[1727225509861,21.6238,152.91,152.86,6.5418]